{"text_format":"3","workbook":"xlsx","n_sheets":4,"sheets":["Έναρξη","Αναφορά μηνιαίου προϋπολογισμού","Μηνιαία έξοδα","Πρόσθετα δεδομένα"],"not_rendered":{"charts":1,"defined_names":3,"pivot_tables":2},"read":"whole","date_system":"1900"}

{"sheet":"Έναρξη","index":0,"n_rows":8,"n_cols":2,"rows_kept":8}
[null,"ΠΛΗΡΟΦΟΡΙΕΣ ΓΙΑ ΑΥΤΟ ΤΟ ΠΡΟΤΥΠΟ"]
[null,"Χρησιμοποιήστε αυτό το βιβλίο εργασίας για να παρακολουθείτε τα έξοδά σας και να δημιουργήσετε τον οικογενειακό προϋπολογισμό σας."]
[null,"Εισαγάγετε τα προβλεπόμενα και τα πραγματικά έσοδα από διάφορες προελεύσεις στο φύλλο εργασίας \"Αναφορά μηνιαίου προϋπολογισμού\" καθώς και τα προβλεπόμενα και τα πραγματικά ποσά που δαπανήθηκαν σε διάφορες κατηγορίες στο φύλλο εργασίας \"Μηνιαία έξοδα\"."]
[null,"Το προβλεπόμενο και το πραγματικό υπόλοιπο και η διαφορά υπολογίζονται αυτόματα και τα γραφήματα \"Σύνοψη προϋπολογισμού\" και \"Επισκόπηση προϋπολογισμού\" ενημερώνονται στο φύλλο εργασίας \"Αναφορά μηνιαίου προϋπολογισμού\"."]
[null,"Μπορείτε να τροποποιήσετε ή να εισαγάγετε μια νέα κατηγορία στον πίνακα στο φύλλο εργασίας \"Πρόσθετα δεδομένα\"."]
[null,"Σημείωση: "]
[null,"Πρόσθετες οδηγίες παρέχονται στη στήλη A στο φύλλο εργασίας ΑΝΑΦΟΡΆ ΜΗΝΙΑΊΟΥ ΠΡΟΫΠΟΛΟΓΙΣΜΟΎ και στο κελί A1 στα φύλλα εργασίας ΜΗΝΙΑΊΑ ΈΞΟΔΑ και ΠΡΌΣΘΕΤΑ ΔΕΔΟΜΈΝΑ. Αυτό το κείμενο είναι κρυφό σκόπιμα. Για να καταργήσετε το κείμενο, επιλέξτε τη στήλη A ή το κελί Α1 και, στη συνέχεια, πατήστε το πλήκτρο DELETE. Για να εμφανίσετε το κείμενο, επιλέξτε τη στήλη A ή το κελί Α1 και, στη συνέχεια, αλλάξτε το χρώμα γραμματοσειράς."]
[null,"Για να μάθετε περισσότερα για τους πίνακες, πατήστε το πλήκτρο SHIFT και, στη συνέχεια, πατήστε το F10 μέσα σε έναν πίνακα, επιλέξτε ΠΙΝΑΚΑΣ και, στη συνέχεια, επιλέξτε ΕΝΑΛΛΑΚΤΙΚΟ ΚΕΙΜΕΝΟ. Για τους Συγκεντρωτικούς Πίνακες, πατήστε το πλήκτρο SHIFT και, στη συνέχεια, πατήστε το F10 μέσα σε έναν πίνακα, επιλέξτε ΕΠΙΛΟΓΕΣ ΣΥΓΚΕΝΤΡΩΤΙΚΟΥ ΠΙΝΑΚΑ και, στη συνέχεια, επιλέξτε την καρτέλα ΕΝΑΛΛΑΚΤΙΚΟ ΚΕΙΜΕΝΟ."]

{"sheet":"Αναφορά μηνιαίου προϋπολογισμού","index":1,"n_rows":34,"n_cols":14,"rows_kept":34,"merged":[[0,1,0,4],[0,5,0,7],[0,12,0,13],[1,9,5,13],[2,2,2,5],[3,2,3,5],[4,2,4,5],[7,1,10,1],[7,5,10,5],[7,6,10,6],[8,9,31,9],[12,1,16,1],[12,5,16,5],[12,6,16,6],[19,1,34,6]]}
["Δημιουργήστε μια Αναφορά μηνιαίου προϋπολογισμού σε αυτό το φύλλο εργασίας. Ο τίτλος αυτού του φύλλου εργασίας βρίσκεται στο κελί στα δεξιά και ο υπότιτλος στο κελί J1. Επιλέξτε το κελί F1 για να μεταβείτε στο φύλλο εργασίας \"Μηνιαία έξοδα\". Σε διάφορα κελιά σε αυτή τη στήλη βρίσκονται άλλες χρήσιμες οδηγίες για τον τρόπο χρήσης αυτού του φύλλου εργασίας.","Επισκόπηση προϋπολογισμού",{"$nulls":3},"Μηνιαία έξοδα",{"$nulls":3},"Σύνοψη προϋπολογισμού",null,null,"Ένα πράσινο στάχυ βρίσκεται αυτό το κελί."]
["Η ετικέτα \"Υπόλοιπο\" βρίσκεται στο κελί στα δεξιά. Οι αναλυτές Συγκεντρωτικού Πίνακα για να φιλτράρετε δεδομένα πίνακα βρίσκονται στα κελιά J2 έως N6. Για να επιλέξετε πολλές κατηγορίες, κρατήστε πατημένο το πλήκτρο Control.","Υπόλοιπο",{"$nulls":7},"Ένας αναλυτής κατηγορία για φιλτράρισμα του Συγκεντρωτικού Πίνακα παρακάτω κατά την επιλεγμένη κατηγορία βρίσκεται σε αυτό το κελί."]
["Η ετικέτα \"Προβλεπόμενο υπόλοιπο\" βρίσκεται στο κελί στα δεξιά. Το προβλεπόμενο υπόλοιπο υπολογίζεται αυτόματα στο κελί G3.","Προβλεπόμενο υπόλοιπο","(Προβλεπόμενα μείον έξοδα)",{"$nulls":3},{"$f":"D17-SUM(ΛεπτομέρειεςΠροϋπολογισμού[Προβλεπόμενα έξοδα])","v":{"v":1585,"d":"1,585 €"}}]
["Η ετικέτα \"Πραγματικό υπόλοιπο\" βρίσκεται στο κελί στα δεξιά. Το πραγματικό υπόλοιπο υπολογίζεται αυτόματα στο κελί G4.","Πραγματικό υπόλοιπο ","(Πραγματικά μείον έξοδα)",{"$nulls":3},{"$f":"D11-SUM(ΛεπτομέρειεςΠροϋπολογισμού[Πραγματικά έξοδα])","v":{"v":1740,"d":"1,740 €"}}]
["Η ετικέτα \"Διαφορά\" βρίσκεται στο κελί στα δεξιά. Η διαφορά υπολογίζεται αυτόματα στο κελί G5. Η επόμενη οδηγία βρίσκεται στο κελί A7.","Διαφορά","(Πραγματικά μείον προβλεπόμενα)",{"$nulls":3},{"$f":"G4-G3","v":{"v":155,"d":"155 €"}}]
[]
["Η ετικέτα \"Έσοδα\" βρίσκεται στο κελί στα δεξιά, η ετικέτα \"Έξοδα\" στο κελί F7 και η συμβουλή για τη σύνοψη προϋπολογισμού στο κελί J7.","Έσοδα",{"$nulls":3},"Έξοδα",{"$nulls":3},"Επιλέξτε τον Συγκεντρωτικό πίνακα παρακάτω και, στη συνέχεια, επιλέξτε Ανανέωση στην καρτέλα Ανάλυση για ενημέρωση."]
["Η ετικέτα \"Πραγματικά έσοδα\" βρίσκεται στο κελί στα δεξιά και η ετικέτα \"Πραγματικά έξοδα\" στο κελί F8. Εισαγάγετε έσοδο 1 στο κελί D8. Τα πραγματικά έξοδα υπολογίζονται αυτόματα στο κελί G8.","ΠΡΑΓΜΑΤΙΚΑ","Έσοδο 1",{"v":5800,"d":"5,800 €"},null,"ΠΡΑΓΜΑΤΙΚΑ",{"$f":"SUM(ΛεπτομέρειεςΠροϋπολογισμού[Πραγματικά έξοδα])","v":{"v":7860,"d":"7,860 €"}}]
["Εισαγάγετε έσοδο 2 στο κελί D9. Η εικόνα βρίσκεται στο κελί J9. Ο Συγκεντρωτικός Πίνακας ξεκινά στο κελί K9. Για να ενημερώσετε τον Συγκεντρωτικό Πίνακα, επιλέξτε \"Ανανέωση\" στην καρτέλα \"Ανάλυση\".",null,"Έσοδο 2",{"v":2300,"d":"2,300 €"},{"$nulls":5},"Η εικόνα περιέχεται σε αυτό το κελί.","Κατηγορία","Προβλεπόμενα έξοδα ","Πραγματικά έξοδα ","Διαφορά "]
["Εισαγάγετε πρόσθετο έσοδο στο κελί D10.",null,"Πρόσθετο έσοδο",{"v":1500,"d":"1,500 €"},{"$nulls":6},"Παιδιά",{"v":140,"d":"140 €"},{"v":140,"d":"140 €"},{"v":0,"d":"0 €"}]
["Η ετικέτα \"Συνολικά έσοδα\" βρίσκεται στο κελί C11 και τα συνολικά έσοδα υπολογίζονται αυτόματα στο κελί D11. Η επόμενη οδηγία βρίσκεται στο κελί A13.",null,"Συνολικά έσοδα",{"$f":"SUM(D8:D10)","v":{"v":9600,"d":"9,600 €"}}]
[{"$nulls":10},"Ψυχαγωγία",{"v":400,"d":"400 €"},{"v":358,"d":"358 €"},{"v":42,"d":"42 €"}]
["Η ετικέτα \"Προβλεπόμενα έσοδα\" βρίσκεται στο κελί στα δεξιά και η ετικέτα \"Προβλεπόμενα έξοδα\" στο κελί F13. Τα προβλεπόμενα έξοδα υπολογίζονται αυτόματα στο κελί G13.","ΠΡΟΒΛΕΠΟΜΕΝΑ",{"$nulls":3},"ΠΡΟΒΛΕΠΟΜΕΝΑ",{"$f":"SUM(ΛεπτομέρειεςΠροϋπολογισμού[Προβλεπόμενα έξοδα])","v":{"v":7915,"d":"7,915 €"}}]
["Εισαγάγετε προβλεπόμενο έσοδο 1 στο κελί D14.",null,"Έσοδο 1",{"v":6000,"d":"6,000 €"},{"$nulls":6},"Φαγητό",{"v":1100,"d":"1,100 €"},{"v":1320,"d":"1,320 €"},{"v":-220,"d":"-220 €"}]
["Εισαγάγετε προβλεπόμενο έσοδο 2 στο κελί D15.",null,"Έσοδο 2",{"v":1000,"d":"1,000 €"}]
["Εισαγάγετε πρόσθετο έσοδο στο κελί D16.",null,"Πρόσθετο έσοδο",{"v":2500,"d":"2,500 €"},{"$nulls":6},"Δώρα και φιλανθρωπία",{"v":100,"d":"100 €"},{"v":125,"d":"125 €"},{"v":-25,"d":"-25 €"}]
["Η ετικέτα \"Συνολικά έσοδα\" βρίσκεται στο κελί C17 και τα συνολικά έσοδα υπολογίζονται αυτόματα στο κελί D17. Η επόμενη οδηγία βρίσκεται στο κελί A20.",null,"Συνολικά έσοδα",{"$f":"SUM(D14:D16)","v":{"v":9500,"d":"9,500 €"}}]
[{"$nulls":10},"Στέγαση",{"v":2830,"d":"2,830 €"},{"v":2702,"d":"2,702 €"},{"v":128,"d":"128 €"}]
[]
["Ένα γράφημα πίτας που εμφανίζει το ποσοστό των εξόδων κατά κατηγορία βρίσκεται στο κελί στα δεξιά.","Ένα γράφημα πίτας που εμφανίζει το ποσοστό των εξόδων κατά κατηγορία βρίσκεται σε αυτό το κελί.",{"$nulls":8},"Ασφάλεια",{"v":900,"d":"900 €"},{"v":900,"d":"900 €"},{"v":0,"d":"0 €"}]
[]
[{"$nulls":10},"Δάνεια",{"v":200,"d":"200 €"},{"v":200,"d":"200 €"},{"v":0,"d":"0 €"}]
[]
[{"$nulls":10},"Προσωπική φροντίδα",{"v":150,"d":"150 €"},{"v":140,"d":"140 €"},{"v":10,"d":"10 €"}]
[]
[{"$nulls":10},"Κατοικίδια",{"v":170,"d":"170 €"},{"v":100,"d":"100 €"},{"v":70,"d":"70 €"}]
[]
[{"$nulls":10},"Αποταμιεύσεις ή επενδύσεις",{"v":200,"d":"200 €"},{"v":200,"d":"200 €"},{"v":0,"d":"0 €"}]
[]
[{"$nulls":10},"Φόροι",{"v":300,"d":"300 €"},{"v":300,"d":"300 €"},{"v":0,"d":"0 €"}]
[]
[{"$nulls":10},"Μετακινήσεις",{"v":1425,"d":"1,425 €"},{"v":1375,"d":"1,375 €"},{"v":50,"d":"50 €"}]
[]
[{"$nulls":10},"Γενικό Άθροισμα",{"v":7915,"d":"7,915 €"},{"v":7860,"d":"7,860 €"},{"v":55,"d":"55 €"}]

{"sheet":"Μηνιαία έξοδα","index":2,"n_rows":62,"n_cols":7,"rows_kept":62,"merged":[[0,1,0,4],[0,5,0,6]]}
["Υπολογίστε τα μηνιαία έξοδά σας σε αυτό το φύλλο εργασίας. Ο τίτλος αυτού του φύλλου εργασίας βρίσκεται στο κελί στα δεξιά. Επιλέξτε το κελί F1 για να μεταβείτε στο φύλλο εργασίας \"Αναφορά μηνιαίου προϋπολογισμού\".","Μηνιαία έξοδα",{"$nulls":3},"Αναφορά μηνιαίου προϋπολογισμού"]
[" Εισαγάγετε δεδομένα στον πίνακα \"Λεπτομέρειες Προϋπολογισμού\", ξεκινώντας από το κελί στα δεξιά.","Περιγραφή","Κατηγορία","Προβλεπόμενα έξοδα","Πραγματικά έξοδα","Διαφορά","Επισκόπηση πραγματικών εξόδων"]
[null,"Εξωσχολικές δραστηριότητες","Παιδιά",{"v":40,"d":"40 €"},{"v":40,"d":"40 €"},{"$f":"ΛεπτομέρειεςΠροϋπολογισμού[[#This Row],[Προβλεπόμενα έξοδα]]-ΛεπτομέρειεςΠροϋπολογισμού[[#This Row],[Πραγματικά έξοδα]]","v":{"v":0,"d":"0 €"}},{"$f":"ΛεπτομέρειεςΠροϋπολογισμού[[#This Row],[Πραγματικά έξοδα]]","v":{"v":40,"d":"40 €"}}]
[null,"Ιατρικά","Παιδιά",null,null,{"$f":"ΛεπτομέρειεςΠροϋπολογισμού[[#This Row],[Προβλεπόμενα έξοδα]]-ΛεπτομέρειεςΠροϋπολογισμού[[#This Row],[Πραγματικά έξοδα]]","v":{"v":0,"d":"0 €"}},{"$f":"ΛεπτομέρειεςΠροϋπολογισμού[[#This Row],[Πραγματικά έξοδα]]","v":{"v":0,"d":"0 €"}}]
[null,"Σχολικά είδη","Παιδιά",null,null,{"$f":"ΛεπτομέρειεςΠροϋπολογισμού[[#This Row],[Προβλεπόμενα έξοδα]]-ΛεπτομέρειεςΠροϋπολογισμού[[#This Row],[Πραγματικά έξοδα]]","v":{"v":0,"d":"0 €"}},{"$f":"ΛεπτομέρειεςΠροϋπολογισμού[[#This Row],[Πραγματικά έξοδα]]","v":{"v":0,"d":"0 €"}}]
[null,"Δίδακτρα","Παιδιά",{"v":100,"d":"100 €"},{"v":100,"d":"100 €"},{"$f":"ΛεπτομέρειεςΠροϋπολογισμού[[#This Row],[Προβλεπόμενα έξοδα]]-ΛεπτομέρειεςΠροϋπολογισμού[[#This Row],[Πραγματικά έξοδα]]","v":{"v":0,"d":"0 €"}},{"$f":"ΛεπτομέρειεςΠροϋπολογισμού[[#This Row],[Πραγματικά έξοδα]]","v":{"v":100,"d":"100 €"}}]
[null,"Συναυλίες","Ψυχαγωγία",{"v":50,"d":"50 €"},{"v":40,"d":"40 €"},{"$f":"ΛεπτομέρειεςΠροϋπολογισμού[[#This Row],[Προβλεπόμενα έξοδα]]-ΛεπτομέρειεςΠροϋπολογισμού[[#This Row],[Πραγματικά έξοδα]]","v":{"v":10,"d":"10 €"}},{"$f":"ΛεπτομέρειεςΠροϋπολογισμού[[#This Row],[Πραγματικά έξοδα]]","v":{"v":40,"d":"40 €"}}]
[null,"Θέατρο","Ψυχαγωγία",{"v":200,"d":"200 €"},{"v":150,"d":"150 €"},{"$f":"ΛεπτομέρειεςΠροϋπολογισμού[[#This Row],[Προβλεπόμενα έξοδα]]-ΛεπτομέρειεςΠροϋπολογισμού[[#This Row],[Πραγματικά έξοδα]]","v":{"v":50,"d":"50 €"}},{"$f":"ΛεπτομέρειεςΠροϋπολογισμού[[#This Row],[Πραγματικά έξοδα]]","v":{"v":150,"d":"150 €"}}]
[null,"Ταινίες","Ψυχαγωγία",{"v":50,"d":"50 €"},{"v":28,"d":"28 €"},{"$f":"ΛεπτομέρειεςΠροϋπολογισμού[[#This Row],[Προβλεπόμενα έξοδα]]-ΛεπτομέρειεςΠροϋπολογισμού[[#This Row],[Πραγματικά έξοδα]]","v":{"v":22,"d":"22 €"}},{"$f":"ΛεπτομέρειεςΠροϋπολογισμού[[#This Row],[Πραγματικά έξοδα]]","v":{"v":28,"d":"28 €"}}]
[null,"Μουσική (CD, λήψεις κομματιών κ.λπ.)","Ψυχαγωγία",{"v":50,"d":"50 €"},{"v":30,"d":"30 €"},{"$f":"ΛεπτομέρειεςΠροϋπολογισμού[[#This Row],[Προβλεπόμενα έξοδα]]-ΛεπτομέρειεςΠροϋπολογισμού[[#This Row],[Πραγματικά έξοδα]]","v":{"v":20,"d":"20 €"}},{"$f":"ΛεπτομέρειεςΠροϋπολογισμού[[#This Row],[Πραγματικά έξοδα]]","v":{"v":30,"d":"30 €"}}]
[null,"Αθλητικές εκδηλώσεις","Ψυχαγωγία",{"v":0,"d":"0 €"},{"v":40,"d":"40 €"},{"$f":"ΛεπτομέρειεςΠροϋπολογισμού[[#This Row],[Προβλεπόμενα έξοδα]]-ΛεπτομέρειεςΠροϋπολογισμού[[#This Row],[Πραγματικά έξοδα]]","v":{"v":-40,"d":"-40 €"}},{"$f":"ΛεπτομέρειεςΠροϋπολογισμού[[#This Row],[Πραγματικά έξοδα]]","v":{"v":40,"d":"40 €"}}]
[null,"Βίντεο/DVD (Αγορά)","Ψυχαγωγία",{"v":20,"d":"20 €"},{"v":50,"d":"50 €"},{"$f":"ΛεπτομέρειεςΠροϋπολογισμού[[#This Row],[Προβλεπόμενα έξοδα]]-ΛεπτομέρειεςΠροϋπολογισμού[[#This Row],[Πραγματικά έξοδα]]","v":{"v":-30,"d":"-30 €"}},{"$f":"ΛεπτομέρειεςΠροϋπολογισμού[[#This Row],[Πραγματικά έξοδα]]","v":{"v":50,"d":"50 €"}}]
[null,"Βίντεο/DVD (Ενοικίαση)","Ψυχαγωγία",{"v":30,"d":"30 €"},{"v":20,"d":"20 €"},{"$f":"ΛεπτομέρειεςΠροϋπολογισμού[[#This Row],[Προβλεπόμενα έξοδα]]-ΛεπτομέρειεςΠροϋπολογισμού[[#This Row],[Πραγματικά έξοδα]]","v":{"v":10,"d":"10 €"}},{"$f":"ΛεπτομέρειεςΠροϋπολογισμού[[#This Row],[Πραγματικά έξοδα]]","v":{"v":20,"d":"20 €"}}]
[null,"Εστιατόρια","Φαγητό",{"v":1000,"d":"1,000 €"},{"v":1200,"d":"1,200 €"},{"$f":"ΛεπτομέρειεςΠροϋπολογισμού[[#This Row],[Προβλεπόμενα έξοδα]]-ΛεπτομέρειεςΠροϋπολογισμού[[#This Row],[Πραγματικά έξοδα]]","v":{"v":-200,"d":"-200 €"}},{"$f":"ΛεπτομέρειεςΠροϋπολογισμού[[#This Row],[Πραγματικά έξοδα]]","v":{"v":1200,"d":"1,200 €"}}]
[null,"Ψώνια","Φαγητό",{"v":100,"d":"100 €"},{"v":120,"d":"120 €"},{"$f":"ΛεπτομέρειεςΠροϋπολογισμού[[#This Row],[Προβλεπόμενα έξοδα]]-ΛεπτομέρειεςΠροϋπολογισμού[[#This Row],[Πραγματικά έξοδα]]","v":{"v":-20,"d":"-20 €"}},{"$f":"ΛεπτομέρειεςΠροϋπολογισμού[[#This Row],[Πραγματικά έξοδα]]","v":{"v":120,"d":"120 €"}}]
[null,"Φιλανθρωπία 1","Δώρα και φιλανθρωπία",{"v":75,"d":"75 €"},{"v":100,"d":"100 €"},{"$f":"ΛεπτομέρειεςΠροϋπολογισμού[[#This Row],[Προβλεπόμενα έξοδα]]-ΛεπτομέρειεςΠροϋπολογισμού[[#This Row],[Πραγματικά έξοδα]]","v":{"v":-25,"d":"-25 €"}},{"$f":"ΛεπτομέρειεςΠροϋπολογισμού[[#This Row],[Πραγματικά έξοδα]]","v":{"v":100,"d":"100 €"}}]
[null,"Φιλανθρωπία 2","Δώρα και φιλανθρωπία",{"v":25,"d":"25 €"},{"v":25,"d":"25 €"},{"$f":"ΛεπτομέρειεςΠροϋπολογισμού[[#This Row],[Προβλεπόμενα έξοδα]]-ΛεπτομέρειεςΠροϋπολογισμού[[#This Row],[Πραγματικά έξοδα]]","v":{"v":0,"d":"0 €"}},{"$f":"ΛεπτομέρειεςΠροϋπολογισμού[[#This Row],[Πραγματικά έξοδα]]","v":{"v":25,"d":"25 €"}}]
[null,"Δώρο 1","Δώρα και φιλανθρωπία",null,null,{"$f":"ΛεπτομέρειεςΠροϋπολογισμού[[#This Row],[Προβλεπόμενα έξοδα]]-ΛεπτομέρειεςΠροϋπολογισμού[[#This Row],[Πραγματικά έξοδα]]","v":{"v":0,"d":"0 €"}},{"$f":"ΛεπτομέρειεςΠροϋπολογισμού[[#This Row],[Πραγματικά έξοδα]]","v":{"v":0,"d":"0 €"}}]
[null,"Δώρο 2","Δώρα και φιλανθρωπία",null,null,{"$f":"ΛεπτομέρειεςΠροϋπολογισμού[[#This Row],[Προβλεπόμενα έξοδα]]-ΛεπτομέρειεςΠροϋπολογισμού[[#This Row],[Πραγματικά έξοδα]]","v":{"v":0,"d":"0 €"}},{"$f":"ΛεπτομέρειεςΠροϋπολογισμού[[#This Row],[Πραγματικά έξοδα]]","v":{"v":0,"d":"0 €"}}]
[null,"Συνδρομητική/Δορυφορική τηλεόραση","Στέγαση",{"v":100,"d":"100 €"},{"v":100,"d":"100 €"},{"$f":"ΛεπτομέρειεςΠροϋπολογισμού[[#This Row],[Προβλεπόμενα έξοδα]]-ΛεπτομέρειεςΠροϋπολογισμού[[#This Row],[Πραγματικά έξοδα]]","v":{"v":0,"d":"0 €"}},{"$f":"ΛεπτομέρειεςΠροϋπολογισμού[[#This Row],[Πραγματικά έξοδα]]","v":{"v":100,"d":"100 €"}}]
[null,"Ηλεκτρικό","Στέγαση",{"v":45,"d":"45 €"},{"v":50,"d":"50 €"},{"$f":"ΛεπτομέρειεςΠροϋπολογισμού[[#This Row],[Προβλεπόμενα έξοδα]]-ΛεπτομέρειεςΠροϋπολογισμού[[#This Row],[Πραγματικά έξοδα]]","v":{"v":-5,"d":"-5 €"}},{"$f":"ΛεπτομέρειεςΠροϋπολογισμού[[#This Row],[Πραγματικά έξοδα]]","v":{"v":50,"d":"50 €"}}]
[null,"Βενζίνη","Στέγαση",{"v":300,"d":"300 €"},{"v":400,"d":"400 €"},{"$f":"ΛεπτομέρειεςΠροϋπολογισμού[[#This Row],[Προβλεπόμενα έξοδα]]-ΛεπτομέρειεςΠροϋπολογισμού[[#This Row],[Πραγματικά έξοδα]]","v":{"v":-100,"d":"-100 €"}},{"$f":"ΛεπτομέρειεςΠροϋπολογισμού[[#This Row],[Πραγματικά έξοδα]]","v":{"v":400,"d":"400 €"}}]
[null,"Υπηρεσία καθαρισμού σπιτιού","Στέγαση",{"v":200,"d":"200 €"},null,{"$f":"ΛεπτομέρειεςΠροϋπολογισμού[[#This Row],[Προβλεπόμενα έξοδα]]-ΛεπτομέρειεςΠροϋπολογισμού[[#This Row],[Πραγματικά έξοδα]]","v":{"v":200,"d":"200 €"}},{"$f":"ΛεπτομέρειεςΠροϋπολογισμού[[#This Row],[Πραγματικά έξοδα]]","v":{"v":0,"d":"0 €"}}]
[null,"Συντήρηση","Στέγαση",{"v":200,"d":"200 €"},{"v":150,"d":"150 €"},{"$f":"ΛεπτομέρειεςΠροϋπολογισμού[[#This Row],[Προβλεπόμενα έξοδα]]-ΛεπτομέρειεςΠροϋπολογισμού[[#This Row],[Πραγματικά έξοδα]]","v":{"v":50,"d":"50 €"}},{"$f":"ΛεπτομέρειεςΠροϋπολογισμού[[#This Row],[Πραγματικά έξοδα]]","v":{"v":150,"d":"150 €"}}]
[null,"Στεγαστικό ή ενοίκιο","Στέγαση",{"v":1700,"d":"1,700 €"},{"v":1700,"d":"1,700 €"},{"$f":"ΛεπτομέρειεςΠροϋπολογισμού[[#This Row],[Προβλεπόμενα έξοδα]]-ΛεπτομέρειεςΠροϋπολογισμού[[#This Row],[Πραγματικά έξοδα]]","v":{"v":0,"d":"0 €"}},{"$f":"ΛεπτομέρειεςΠροϋπολογισμού[[#This Row],[Πραγματικά έξοδα]]","v":{"v":1700,"d":"1,700 €"}}]
[null,"Πετρέλαιο/Φυσικό αέριο","Στέγαση",null,null,{"$f":"ΛεπτομέρειεςΠροϋπολογισμού[[#This Row],[Προβλεπόμενα έξοδα]]-ΛεπτομέρειεςΠροϋπολογισμού[[#This Row],[Πραγματικά έξοδα]]","v":{"v":0,"d":"0 €"}},{"$f":"ΛεπτομέρειεςΠροϋπολογισμού[[#This Row],[Πραγματικά έξοδα]]","v":{"v":0,"d":"0 €"}}]
[null,"Υπηρεσία παροχής Internet","Στέγαση",{"v":100,"d":"100 €"},{"v":100,"d":"100 €"},{"$f":"ΛεπτομέρειεςΠροϋπολογισμού[[#This Row],[Προβλεπόμενα έξοδα]]-ΛεπτομέρειεςΠροϋπολογισμού[[#This Row],[Πραγματικά έξοδα]]","v":{"v":0,"d":"0 €"}},{"$f":"ΛεπτομέρειεςΠροϋπολογισμού[[#This Row],[Πραγματικά έξοδα]]","v":{"v":100,"d":"100 €"}}]
[null,"Τηλέφωνο (κινητό)","Στέγαση",{"v":60,"d":"60 €"},{"v":60,"d":"60 €"},{"$f":"ΛεπτομέρειεςΠροϋπολογισμού[[#This Row],[Προβλεπόμενα έξοδα]]-ΛεπτομέρειεςΠροϋπολογισμού[[#This Row],[Πραγματικά έξοδα]]","v":{"v":0,"d":"0 €"}},{"$f":"ΛεπτομέρειεςΠροϋπολογισμού[[#This Row],[Πραγματικά έξοδα]]","v":{"v":60,"d":"60 €"}}]
[null,"Τηλέφωνο (σταθερό)","Στέγαση",{"v":35,"d":"35 €"},{"v":39,"d":"39 €"},{"$f":"ΛεπτομέρειεςΠροϋπολογισμού[[#This Row],[Προβλεπόμενα έξοδα]]-ΛεπτομέρειεςΠροϋπολογισμού[[#This Row],[Πραγματικά έξοδα]]","v":{"v":-4,"d":"-4 €"}},{"$f":"ΛεπτομέρειεςΠροϋπολογισμού[[#This Row],[Πραγματικά έξοδα]]","v":{"v":39,"d":"39 €"}}]
[null,"Προμήθειες","Στέγαση",{"v":40,"d":"40 €"},{"v":55,"d":"55 €"},{"$f":"ΛεπτομέρειεςΠροϋπολογισμού[[#This Row],[Προβλεπόμενα έξοδα]]-ΛεπτομέρειεςΠροϋπολογισμού[[#This Row],[Πραγματικά έξοδα]]","v":{"v":-15,"d":"-15 €"}},{"$f":"ΛεπτομέρειεςΠροϋπολογισμού[[#This Row],[Πραγματικά έξοδα]]","v":{"v":55,"d":"55 €"}}]
[null,"Δημοτικά τέλη","Στέγαση",{"v":25,"d":"25 €"},{"v":22,"d":"22 €"},{"$f":"ΛεπτομέρειεςΠροϋπολογισμού[[#This Row],[Προβλεπόμενα έξοδα]]-ΛεπτομέρειεςΠροϋπολογισμού[[#This Row],[Πραγματικά έξοδα]]","v":{"v":3,"d":"3 €"}},{"$f":"ΛεπτομέρειεςΠροϋπολογισμού[[#This Row],[Πραγματικά έξοδα]]","v":{"v":22,"d":"22 €"}}]
[null,"Ύδρευση και αποχέτευση","Στέγαση",{"v":25,"d":"25 €"},{"v":26,"d":"26 €"},{"$f":"ΛεπτομέρειεςΠροϋπολογισμού[[#This Row],[Προβλεπόμενα έξοδα]]-ΛεπτομέρειεςΠροϋπολογισμού[[#This Row],[Πραγματικά έξοδα]]","v":{"v":-1,"d":"-1 €"}},{"$f":"ΛεπτομέρειεςΠροϋπολογισμού[[#This Row],[Πραγματικά έξοδα]]","v":{"v":26,"d":"26 €"}}]
[null,"Υγεία","Ασφάλεια",{"v":400,"d":"400 €"},{"v":400,"d":"400 €"},{"$f":"ΛεπτομέρειεςΠροϋπολογισμού[[#This Row],[Προβλεπόμενα έξοδα]]-ΛεπτομέρειεςΠροϋπολογισμού[[#This Row],[Πραγματικά έξοδα]]","v":{"v":0,"d":"0 €"}},{"$f":"ΛεπτομέρειεςΠροϋπολογισμού[[#This Row],[Πραγματικά έξοδα]]","v":{"v":400,"d":"400 €"}}]
[null,"Σπιτιού","Ασφάλεια",{"v":400,"d":"400 €"},{"v":400,"d":"400 €"},{"$f":"ΛεπτομέρειεςΠροϋπολογισμού[[#This Row],[Προβλεπόμενα έξοδα]]-ΛεπτομέρειεςΠροϋπολογισμού[[#This Row],[Πραγματικά έξοδα]]","v":{"v":0,"d":"0 €"}},{"$f":"ΛεπτομέρειεςΠροϋπολογισμού[[#This Row],[Πραγματικά έξοδα]]","v":{"v":400,"d":"400 €"}}]
[null,"Ζωής","Ασφάλεια",{"v":100,"d":"100 €"},{"v":100,"d":"100 €"},{"$f":"ΛεπτομέρειεςΠροϋπολογισμού[[#This Row],[Προβλεπόμενα έξοδα]]-ΛεπτομέρειεςΠροϋπολογισμού[[#This Row],[Πραγματικά έξοδα]]","v":{"v":0,"d":"0 €"}},{"$f":"ΛεπτομέρειεςΠροϋπολογισμού[[#This Row],[Πραγματικά έξοδα]]","v":{"v":100,"d":"100 €"}}]
[null,"Πιστωτική κάρτα 1","Δάνεια",{"v":200,"d":"200 €"},{"v":200,"d":"200 €"},{"$f":"ΛεπτομέρειεςΠροϋπολογισμού[[#This Row],[Προβλεπόμενα έξοδα]]-ΛεπτομέρειεςΠροϋπολογισμού[[#This Row],[Πραγματικά έξοδα]]","v":{"v":0,"d":"0 €"}},{"$f":"ΛεπτομέρειεςΠροϋπολογισμού[[#This Row],[Πραγματικά έξοδα]]","v":{"v":200,"d":"200 €"}}]
[null,"Πιστωτική κάρτα 2","Δάνεια",null,null,{"$f":"ΛεπτομέρειεςΠροϋπολογισμού[[#This Row],[Προβλεπόμενα έξοδα]]-ΛεπτομέρειεςΠροϋπολογισμού[[#This Row],[Πραγματικά έξοδα]]","v":{"v":0,"d":"0 €"}},{"$f":"ΛεπτομέρειεςΠροϋπολογισμού[[#This Row],[Πραγματικά έξοδα]]","v":{"v":0,"d":"0 €"}}]
[null,"Πιστωτική κάρτα 3","Δάνεια",null,null,{"$f":"ΛεπτομέρειεςΠροϋπολογισμού[[#This Row],[Προβλεπόμενα έξοδα]]-ΛεπτομέρειεςΠροϋπολογισμού[[#This Row],[Πραγματικά έξοδα]]","v":{"v":0,"d":"0 €"}},{"$f":"ΛεπτομέρειεςΠροϋπολογισμού[[#This Row],[Πραγματικά έξοδα]]","v":{"v":0,"d":"0 €"}}]
[null,"Προσωπικό","Δάνεια",null,null,{"$f":"ΛεπτομέρειεςΠροϋπολογισμού[[#This Row],[Προβλεπόμενα έξοδα]]-ΛεπτομέρειεςΠροϋπολογισμού[[#This Row],[Πραγματικά έξοδα]]","v":{"v":0,"d":"0 €"}},{"$f":"ΛεπτομέρειεςΠροϋπολογισμού[[#This Row],[Πραγματικά έξοδα]]","v":{"v":0,"d":"0 €"}}]
[null,"Φοιτητικό","Δάνεια",null,null,{"$f":"ΛεπτομέρειεςΠροϋπολογισμού[[#This Row],[Προβλεπόμενα έξοδα]]-ΛεπτομέρειεςΠροϋπολογισμού[[#This Row],[Πραγματικά έξοδα]]","v":{"v":0,"d":"0 €"}},{"$f":"ΛεπτομέρειεςΠροϋπολογισμού[[#This Row],[Πραγματικά έξοδα]]","v":{"v":0,"d":"0 €"}}]
[null,"Ρούχα","Προσωπική φροντίδα",{"v":150,"d":"150 €"},{"v":140,"d":"140 €"},{"$f":"ΛεπτομέρειεςΠροϋπολογισμού[[#This Row],[Προβλεπόμενα έξοδα]]-ΛεπτομέρειεςΠροϋπολογισμού[[#This Row],[Πραγματικά έξοδα]]","v":{"v":10,"d":"10 €"}},{"$f":"ΛεπτομέρειεςΠροϋπολογισμού[[#This Row],[Πραγματικά έξοδα]]","v":{"v":140,"d":"140 €"}}]
[null,"Στεγνοκαθαριστήριο","Προσωπική φροντίδα",null,null,{"$f":"ΛεπτομέρειεςΠροϋπολογισμού[[#This Row],[Προβλεπόμενα έξοδα]]-ΛεπτομέρειεςΠροϋπολογισμού[[#This Row],[Πραγματικά έξοδα]]","v":{"v":0,"d":"0 €"}},{"$f":"ΛεπτομέρειεςΠροϋπολογισμού[[#This Row],[Πραγματικά έξοδα]]","v":{"v":0,"d":"0 €"}}]
[null,"Κομμωτήριο","Προσωπική φροντίδα",null,null,{"$f":"ΛεπτομέρειεςΠροϋπολογισμού[[#This Row],[Προβλεπόμενα έξοδα]]-ΛεπτομέρειεςΠροϋπολογισμού[[#This Row],[Πραγματικά έξοδα]]","v":{"v":0,"d":"0 €"}},{"$f":"ΛεπτομέρειεςΠροϋπολογισμού[[#This Row],[Πραγματικά έξοδα]]","v":{"v":0,"d":"0 €"}}]
[null,"Γυμναστήριο","Προσωπική φροντίδα",null,null,{"$f":"ΛεπτομέρειεςΠροϋπολογισμού[[#This Row],[Προβλεπόμενα έξοδα]]-ΛεπτομέρειεςΠροϋπολογισμού[[#This Row],[Πραγματικά έξοδα]]","v":{"v":0,"d":"0 €"}},{"$f":"ΛεπτομέρειεςΠροϋπολογισμού[[#This Row],[Πραγματικά έξοδα]]","v":{"v":0,"d":"0 €"}}]
[null,"Ιατρικά","Προσωπική φροντίδα",null,null,{"$f":"ΛεπτομέρειεςΠροϋπολογισμού[[#This Row],[Προβλεπόμενα έξοδα]]-ΛεπτομέρειεςΠροϋπολογισμού[[#This Row],[Πραγματικά έξοδα]]","v":{"v":0,"d":"0 €"}},{"$f":"ΛεπτομέρειεςΠροϋπολογισμού[[#This Row],[Πραγματικά έξοδα]]","v":{"v":0,"d":"0 €"}}]
[null,"Φαγητό","Κατοικίδια",{"v":150,"d":"150 €"},{"v":75,"d":"75 €"},{"$f":"ΛεπτομέρειεςΠροϋπολογισμού[[#This Row],[Προβλεπόμενα έξοδα]]-ΛεπτομέρειεςΠροϋπολογισμού[[#This Row],[Πραγματικά έξοδα]]","v":{"v":75,"d":"75 €"}},{"$f":"ΛεπτομέρειεςΠροϋπολογισμού[[#This Row],[Πραγματικά έξοδα]]","v":{"v":75,"d":"75 €"}}]
[null,"Περιποίηση","Κατοικίδια",{"v":20,"d":"20 €"},{"v":25,"d":"25 €"},{"$f":"ΛεπτομέρειεςΠροϋπολογισμού[[#This Row],[Προβλεπόμενα έξοδα]]-ΛεπτομέρειεςΠροϋπολογισμού[[#This Row],[Πραγματικά έξοδα]]","v":{"v":-5,"d":"-5 €"}},{"$f":"ΛεπτομέρειεςΠροϋπολογισμού[[#This Row],[Πραγματικά έξοδα]]","v":{"v":25,"d":"25 €"}}]
[null,"Ιατρικά","Κατοικίδια",null,null,{"$f":"ΛεπτομέρειεςΠροϋπολογισμού[[#This Row],[Προβλεπόμενα έξοδα]]-ΛεπτομέρειεςΠροϋπολογισμού[[#This Row],[Πραγματικά έξοδα]]","v":{"v":0,"d":"0 €"}},{"$f":"ΛεπτομέρειεςΠροϋπολογισμού[[#This Row],[Πραγματικά έξοδα]]","v":{"v":0,"d":"0 €"}}]
[null,"Παιχνίδια","Κατοικίδια",null,null,{"$f":"ΛεπτομέρειεςΠροϋπολογισμού[[#This Row],[Προβλεπόμενα έξοδα]]-ΛεπτομέρειεςΠροϋπολογισμού[[#This Row],[Πραγματικά έξοδα]]","v":{"v":0,"d":"0 €"}},{"$f":"ΛεπτομέρειεςΠροϋπολογισμού[[#This Row],[Πραγματικά έξοδα]]","v":{"v":0,"d":"0 €"}}]
[null,"Επενδυτικός λογαριασμός","Αποταμιεύσεις ή επενδύσεις",{"v":200,"d":"200 €"},{"v":200,"d":"200 €"},{"$f":"ΛεπτομέρειεςΠροϋπολογισμού[[#This Row],[Προβλεπόμενα έξοδα]]-ΛεπτομέρειεςΠροϋπολογισμού[[#This Row],[Πραγματικά έξοδα]]","v":{"v":0,"d":"0 €"}},{"$f":"ΛεπτομέρειεςΠροϋπολογισμού[[#This Row],[Πραγματικά έξοδα]]","v":{"v":200,"d":"200 €"}}]
[null,"Λογαριασμός συνταξιοδότησης","Αποταμιεύσεις ή επενδύσεις",null,null,{"$f":"ΛεπτομέρειεςΠροϋπολογισμού[[#This Row],[Προβλεπόμενα έξοδα]]-ΛεπτομέρειεςΠροϋπολογισμού[[#This Row],[Πραγματικά έξοδα]]","v":{"v":0,"d":"0 €"}},{"$f":"ΛεπτομέρειεςΠροϋπολογισμού[[#This Row],[Πραγματικά έξοδα]]","v":{"v":0,"d":"0 €"}}]
[null,"Εθνικοί","Φόροι",{"v":300,"d":"300 €"},{"v":300,"d":"300 €"},{"$f":"ΛεπτομέρειεςΠροϋπολογισμού[[#This Row],[Προβλεπόμενα έξοδα]]-ΛεπτομέρειεςΠροϋπολογισμού[[#This Row],[Πραγματικά έξοδα]]","v":{"v":0,"d":"0 €"}},{"$f":"ΛεπτομέρειεςΠροϋπολογισμού[[#This Row],[Πραγματικά έξοδα]]","v":{"v":300,"d":"300 €"}}]
[null,"Δημοτικοί","Φόροι",null,null,{"$f":"ΛεπτομέρειεςΠροϋπολογισμού[[#This Row],[Προβλεπόμενα έξοδα]]-ΛεπτομέρειεςΠροϋπολογισμού[[#This Row],[Πραγματικά έξοδα]]","v":{"v":0,"d":"0 €"}},{"$f":"ΛεπτομέρειεςΠροϋπολογισμού[[#This Row],[Πραγματικά έξοδα]]","v":{"v":0,"d":"0 €"}}]
[null,"Περιφερειακοί","Φόροι",null,null,{"$f":"ΛεπτομέρειεςΠροϋπολογισμού[[#This Row],[Προβλεπόμενα έξοδα]]-ΛεπτομέρειεςΠροϋπολογισμού[[#This Row],[Πραγματικά έξοδα]]","v":{"v":0,"d":"0 €"}},{"$f":"ΛεπτομέρειεςΠροϋπολογισμού[[#This Row],[Πραγματικά έξοδα]]","v":{"v":0,"d":"0 €"}}]
[null,"Ναύλα λεωφορείου/ταξί","Μετακινήσεις",{"v":100,"d":"100 €"},{"v":150,"d":"150 €"},{"$f":"ΛεπτομέρειεςΠροϋπολογισμού[[#This Row],[Προβλεπόμενα έξοδα]]-ΛεπτομέρειεςΠροϋπολογισμού[[#This Row],[Πραγματικά έξοδα]]","v":{"v":-50,"d":"-50 €"}},{"$f":"ΛεπτομέρειεςΠροϋπολογισμού[[#This Row],[Πραγματικά έξοδα]]","v":{"v":150,"d":"150 €"}}]
[null,"Καύσιμα","Μετακινήσεις",{"v":450,"d":"450 €"},{"v":400,"d":"400 €"},{"$f":"ΛεπτομέρειεςΠροϋπολογισμού[[#This Row],[Προβλεπόμενα έξοδα]]-ΛεπτομέρειεςΠροϋπολογισμού[[#This Row],[Πραγματικά έξοδα]]","v":{"v":50,"d":"50 €"}},{"$f":"ΛεπτομέρειεςΠροϋπολογισμού[[#This Row],[Πραγματικά έξοδα]]","v":{"v":400,"d":"400 €"}}]
[null,"Ασφάλεια","Μετακινήσεις",{"v":300,"d":"300 €"},{"v":300,"d":"300 €"},{"$f":"ΛεπτομέρειεςΠροϋπολογισμού[[#This Row],[Προβλεπόμενα έξοδα]]-ΛεπτομέρειεςΠροϋπολογισμού[[#This Row],[Πραγματικά έξοδα]]","v":{"v":0,"d":"0 €"}},{"$f":"ΛεπτομέρειεςΠροϋπολογισμού[[#This Row],[Πραγματικά έξοδα]]","v":{"v":300,"d":"300 €"}}]
[null,"Τέλη κυκλοφορίας ","Μετακινήσεις",{"v":25,"d":"25 €"},{"v":25,"d":"25 €"},{"$f":"ΛεπτομέρειεςΠροϋπολογισμού[[#This Row],[Προβλεπόμενα έξοδα]]-ΛεπτομέρειεςΠροϋπολογισμού[[#This Row],[Πραγματικά έξοδα]]","v":{"v":0,"d":"0 €"}},{"$f":"ΛεπτομέρειεςΠροϋπολογισμού[[#This Row],[Πραγματικά έξοδα]]","v":{"v":25,"d":"25 €"}}]
[null,"Συντήρηση","Μετακινήσεις",{"v":100,"d":"100 €"},{"v":50,"d":"50 €"},{"$f":"ΛεπτομέρειεςΠροϋπολογισμού[[#This Row],[Προβλεπόμενα έξοδα]]-ΛεπτομέρειεςΠροϋπολογισμού[[#This Row],[Πραγματικά έξοδα]]","v":{"v":50,"d":"50 €"}},{"$f":"ΛεπτομέρειεςΠροϋπολογισμού[[#This Row],[Πραγματικά έξοδα]]","v":{"v":50,"d":"50 €"}}]
[null,"Στάθμευση","Μετακινήσεις",null,null,{"$f":"ΛεπτομέρειεςΠροϋπολογισμού[[#This Row],[Προβλεπόμενα έξοδα]]-ΛεπτομέρειεςΠροϋπολογισμού[[#This Row],[Πραγματικά έξοδα]]","v":{"v":0,"d":"0 €"}},{"$f":"ΛεπτομέρειεςΠροϋπολογισμού[[#This Row],[Πραγματικά έξοδα]]","v":{"v":0,"d":"0 €"}}]
[null,"Δόση οχήματος","Μετακινήσεις",{"v":450,"d":"450 €"},{"v":450,"d":"450 €"},{"$f":"ΛεπτομέρειεςΠροϋπολογισμού[[#This Row],[Προβλεπόμενα έξοδα]]-ΛεπτομέρειεςΠροϋπολογισμού[[#This Row],[Πραγματικά έξοδα]]","v":{"v":0,"d":"0 €"}},{"$f":"ΛεπτομέρειεςΠροϋπολογισμού[[#This Row],[Πραγματικά έξοδα]]","v":{"v":450,"d":"450 €"}}]
[null,"Σύνολο",null,{"$f":"SUBTOTAL(109,ΛεπτομέρειεςΠροϋπολογισμού[Προβλεπόμενα έξοδα])","v":{"v":7915,"d":"7,915 €"}},{"$f":"SUBTOTAL(109,ΛεπτομέρειεςΠροϋπολογισμού[Πραγματικά έξοδα])","v":{"v":7860,"d":"7,860 €"}},{"$f":"SUBTOTAL(109,ΛεπτομέρειεςΠροϋπολογισμού[Διαφορά])","v":{"v":55,"d":"55 €"}}]

{"sheet":"Πρόσθετα δεδομένα","index":3,"n_rows":15,"n_cols":5,"rows_kept":15}
["Χρησιμοποιήστε αυτό το φύλλο εργασίας για να τροποποιήσετε την αναπτυσσόμενη λίστα της στήλης \"Κατηγορία\" στον πίνακα \"Λεπτομέρειες Προϋπολογισμού\" στο φύλλο εργασίας \"Μηνιαία έξοδα\". Για να το κάνετε αυτό, τροποποιήστε ή προσθέστε μια νέα κατηγορία στον πίνακα \"Αναζήτηση κατηγορίας προϋπολογισμού\", που ξεκινά στο κελί E2. Ένας Συγκεντρωτικός Πίνακας που είναι συνδεδεμένος στο γράφημα \"Επισκόπηση προϋπολογισμού\" στο φύλλο εργασίας \"Αναφορά μηνιαίου προϋπολογισμού\" ξεκινά από το κελί B2.","Συγκεντρωτικός Πίνακας για το γράφημα \"Επισκόπηση προϋπολογισμού\"",null,null,"Λίστα αναζήτησης για την κατηγορία \"Λεπτομέρειες προϋπολογισμού\""]
[null,"Κατηγορία","Έξοδα",null,"Αναζήτηση κατηγορίας προϋπολογισμού"]
[null,"Παιδιά",{"v":140,"d":"140 €"},null,"Παιδιά"]
[null,"Ψυχαγωγία",{"v":358,"d":"358 €"},null,"Ψυχαγωγία"]
[null,"Φαγητό",{"v":1320,"d":"1,320 €"},null,"Φαγητό"]
[null,"Δώρα και φιλανθρωπία",{"v":125,"d":"125 €"},null,"Δώρα και φιλανθρωπία"]
[null,"Στέγαση",{"v":2702,"d":"2,702 €"},null,"Στέγαση"]
[null,"Ασφάλεια",{"v":900,"d":"900 €"},null,"Ασφάλεια"]
[null,"Δάνεια",{"v":200,"d":"200 €"},null,"Δάνεια"]
[null,"Προσωπική φροντίδα",{"v":140,"d":"140 €"},null,"Προσωπική φροντίδα"]
[null,"Κατοικίδια",{"v":100,"d":"100 €"},null,"Κατοικίδια"]
[null,"Αποταμιεύσεις ή επενδύσεις",{"v":200,"d":"200 €"},null,"Αποταμιεύσεις ή επενδύσεις"]
[null,"Φόροι",{"v":300,"d":"300 €"},null,"Φόροι"]
[null,"Μετακινήσεις",{"v":1375,"d":"1,375 €"},null,"Μετακινήσεις"]
[null,"Γενικό Άθροισμα",{"v":7860,"d":"7,860 €"}]